bitfinex/quotes_ETHUSD_20220120
["timestamp","ask_amount","ask_price","bid_price","bid_amount"]
[1642679775904,0.00511581,3149.5,3148.7,3.38975727]
[1642679776304,0.00454739,3149.4,3148.7,3.38975727]
[1642679776805,0.00397896,3149.3,3148.7,3.38975727]
[1642679777005,0.00397896,3149.3,3148.6,0.3]
[1642679777207,0.00341054,3149.2,3148.5,0.3]
[1642679777508,0.00284211,3149.1,3148.4,3.41836868]
[1642679777708,0.00284211,3149.1,3148.6,1.34640957]
[1642679777906,0.00227369,3149.0,3148.6,1.94640957]
[1642679778353,0.00170527,3148.9,3148.7,2.7971424]
[1642679778555,0.00170527,3148.9,3148.6,1.94640957]
[1642679778753,0.00113684,3148.8,3148.6,1.94640957]
[1642679779159,0.00568423,3149.6,3148.6,1.94640957]
[1642679779957,0.00568423,3149.6,3148.7,2.84408733]
[1642679780959,0.00568423,3149.6,3149.1,1.13740518]
[1642679781160,0.00568423,3149.6,3149.4,1.48872696]
[1642679783706,0.00568423,3149.6,3149.5,2.89155357]
[1642679784106,0.00568423,3149.6,3149.4,2.00322696]
[1642679784507,0.00568423,3149.6,3149.5,2.83909873]
[1642679784707,0.00568423,3149.6,3149.4,2.00322696]
[1642679784907,0.00568423,3149.6,3149.5,3.16470822]
[1642679785107,0.00568423,3149.6,3149.5,2.79170263]
[1642679785307,0.00568423,3149.6,3149.4,2.30322696]
[1642679785572,0.00568423,3149.6,3149.5,2.81940978]
[1642679785760,0.00568423,3149.6,3149.5,5.5309148]
[1642679786161,1.1877,3150.2,3149.6,2.5]
[1642679786460,0.00284212,3150.1,3149.7,3.10482785]
[1642679786660,0.00284212,3150.1,3149.7,0.3]
[1642679786859,0.0022737,3150.0,3149.6,1.56189]
[1642679787059,0.0022737,3150.0,3149.7,3.95478566]
[1642679787260,0.00170527,3149.9,3149.7,1.40680355]
[1642679787563,0.00170527,3149.9,3149.8,9.68688475]
[1642679787766,3.7243,3150.7,3150.0,0.79361]
[1642679787960,3.7243,3150.7,3150.1,2.70113475]
[1642679788164,0.00568424,3150.6,3150.1,3.20963475]
[1642679788360,0.00568424,3150.6,3150.2,1.45034466]
[1642679788563,0.00511581,3150.5,3150.2,1.45034466]
[1642679788961,0.00454739,3150.4,3150.2,1.75034466]
[1642679789407,0.00397897,3150.3,3150.2,6.40034466]
[1642679789809,0.00397897,3150.3,3150.2,9.10123677]
[1642679790008,0.00397897,3150.3,3150.2,4.45123677]
[1642679791214,0.00397897,3150.3,3150.2,7.67901006]
[1642679791714,0.1,3150.8,3150.4,0.79365]
[1642679791915,0.1,3150.8,3150.5,2.95097882]
[1642679792213,0.00227369,3150.7,3150.5,2.95097882]
[1642679792615,0.00170527,3150.6,3150.5,2.95097882]
[1642679792813,0.00170527,3150.6,3150.5,4.34670117]
[1642679793059,0.00170527,3150.6,3150.5,1.39572235]
[1642679793255,0.00170527,3150.6,3150.5,4.22324848]
[1642679793657,0.00170527,3150.6,3150.5,1.39572235]
[1642679797205,0.00552192,3150.6,3150.5,1.39572235]
[1642679799509,0.00552192,3150.6,3150.4,0.5]
[1642679800007,0.00113684,3150.5,3150.4,0.5]
[1642679800554,10.00113684,3150.5,3150.4,0.5]
[1642679800752,10.00113684,3150.5,3150.4,2.06331822]
[1642679802254,10.00494672,3150.5,3150.4,2.06331822]
[1642679806108,10.00494672,3150.5,3150.4,0.5]
[1642679807309,10.00494672,3150.5,3150.4,1.82929285]
[1642679808152,10.00494672,3150.5,3150.4,0.5]
[1642679808153,11.00494672,3150.5,3150.4,0.5]
[1642679808555,10.00494672,3150.5,3150.4,0.5]
[1642679809957,10.00494672,3150.5,3150.4,2.00733692]
[1642679811360,10.00494672,3150.5,3150.4,0.5]
[1642679811563,11.00494672,3150.5,3150.4,0.5]
[1642679814810,11.00494672,3150.5,3150.4,0.4991666]
[1642679816861,10.99517564,3150.5,3150.4,0.4991666]
[1642679819303,10.99428565,3150.5,3150.4,0.4991666]
[1642679822111,9.99428565,3150.5,3150.4,0.4991666]
[1642679822507,9.99428565,3150.5,3150.4,3.37819004]
[1642679822708,9.99428565,3150.5,3150.4,0.4991666]
[1642679828005,9.99428565,3150.5,3150.4,3.19976968]
[1642679833156,9.99428565,3150.5,3150.4,3.49976968]
[1642679834811,3.64422565,3150.5,3150.4,3.49976968]
[1642679835310,0.1,3150.8,3150.4,3.49976968]
[1642679835512,0.1,3150.8,3150.6,0.79376]
[1642679835712,0.00113685,3150.7,3150.6,0.79376]
[1642679835914,0.00029918,3150.7,3150.6,0.79376]
[1642679836314,0.00029918,3150.7,3150.6,3.49420423]
[1642679838356,0.00029918,3150.7,3150.6,3.79420423]
[1642679838554,0.00029918,3150.7,3150.6,3.74420423]
[1642679838754,0.00029918,3150.7,3150.6,3.49420423]
[1642679841903,0.00029918,3150.7,3150.6,3.79420423]
[1642679842102,0.00029918,3150.7,3150.6,4.09420423]
[1642679842503,0.1,3150.8,3150.7,3.15]
[1642679842702,0.1,3150.8,3150.7,2.70044423]
[1642679845564,0.1,3150.8,3150.6,1.39376]
[1642679845960,0.1,3150.8,3150.6,1.09376]
[1642679847660,0.1,3150.8,3150.7,2.70015064]
[1642679851912,0.1,3150.8,3150.7,2.70013972]
[1642679855558,0.1,3150.8,3150.7,3.00013972]
[1642679855763,0.1,3150.8,3150.7,8.99721542]
[1642679855962,0.1,3150.8,3150.7,9.99721542]
[1642679856561,0.1,3151.4,3151.2,1.27835544]
[1642679856811,0.1,3151.4,3151.3,1.10926145]
[1642679857009,3.8766,3151.8,3151.3,1.10926145]
[1642679857208,1.1828,3152.1,3151.3,1.10926145]
[1642679857409,0.00568423,3151.7,3151.3,1.10926145]
[1642679857609,0.0048226,3151.7,3151.4,1.09348]
[1642679857811,0.00511581,3151.6,3151.4,1.09445906]
[1642679858009,0.00425418,3151.6,3151.4,1.09445906]
[1642679858210,0.93648576,3152.1,3151.4,1.09445906]
[1642679858610,0.00284212,3152.0,3151.4,1.09445906]
[1642679858913,0.93648576,3152.1,3151.5,1.42781313]
[1642679858914,0.00227369,3151.9,3151.5,1.42781313]
[1642679859212,0.00170527,3151.8,3151.4,0.00097906]
[1642679859610,0.00113684,3151.7,3151.4,0.00097906]
[1642679860412,0.00113684,3151.7,3151.5,1.21147953]
[1642679864904,0.00113684,3151.7,3150.9,3.1382]
[1642679865104,0.00113684,3151.7,3151.0,2.69990051]
[1642679865302,0.00113684,3151.7,3151.0,2.70274263]
[1642679865707,0.00113684,3151.7,3151.0,0.00284212]
[1642679865907,0.00113684,3151.7,3151.0,1.37265383]
[1642679866307,0.00113684,3151.7,3151.1,0.7958437]
[1642679866709,0.00113684,3151.7,3151.2,0.00170527]
[1642679867610,0.00113684,3151.7,3151.2,2.70136782]
[1642679868063,0.00113684,3151.7,3151.3,0.00113685]
[1642679878060,0.00113684,3151.7,3151.3,4.28687325]
[1642679878260,0.00113684,3151.7,3151.4,4.28651255]
[1642679878460,0.00113684,3151.7,3151.5,2.99966255]
[1642679878659,0.00113684,3151.7,3151.6,2.69966255]
[1642679878860,0.1,3152.2,3151.7,5.7]
[1642679879061,5.0777,3153.2,3152.0,0.79322]
[1642679879311,5.0777,3153.2,3152.1,2.69966255]
[1642679879514,4.8777,3153.2,3152.1,6.27449895]
[1642679879711,4.8777,3153.2,3152.2,2.69966255]
[1642679880516,4.8777,3153.2,3152.5,1.33181184]
[1642679880717,4.8777,3153.2,3152.5,2.12502184]
[1642679881318,4.8777,3153.2,3153.1,1.28356444]
[1642679881516,0.924131,3153.4,3153.1,1.28356444]
[1642679881717,0.00852636,3153.2,3153.1,1.28356444]
[1642679893267,2.97114675,3153.2,3153.1,1.28356444]
[1642679893667,4.57114675,3153.2,3153.1,1.28356444]
[1642679895814,1.60852636,3153.2,3153.1,1.28356444]
[1642679896213,0.60852636,3153.2,3153.1,1.28356444]
[1642679896413,0.30852636,3153.2,3153.1,1.28356444]
[1642679896712,0.00852636,3153.2,3153.1,1.28356444]
[1642679896913,0.00766771,3153.2,3153.1,1.28356444]
[1642679897914,0.00766771,3153.2,3152.5,1.33181184]
[1642679898367,1.015,3153.3,3152.5,1.33181184]
[1642679898368,0.00709928,3153.1,3152.5,1.33181184]
[1642679898767,0.00653086,3153.0,3152.5,1.33181184]
[1642679898969,0.00653086,3153.0,3152.7,1.52909619]
[1642679899168,0.00596244,3152.9,3152.7,1.52909619]
[1642679899669,0.00539401,3152.8,3152.7,1.52909619]
[1642679904516,0.00539401,3152.8,3152.7,1.42909619]
[1642679908689,0.00539401,3152.8,3152.7,1.58794619]
[1642679908889,0.00539401,3152.8,3152.7,8.16117088]
[1642679909092,0.00539401,3152.8,3152.7,6.46278259]
[1642679909512,0.00539401,3152.8,3152.7,6.31278259]
[1642679909917,0.00539401,3152.8,3152.7,9.01115561]
[1642679912117,0.00539401,3152.8,3152.7,6.31278259]
[1642679912317,0.00539401,3152.8,3152.7,9.01119682]
[1642679912717,0.00539401,3152.8,3152.7,6.31278259]
[1642679912919,0.00539401,3152.8,3152.7,9.01122938]
[1642679913194,0.00539401,3152.8,3152.7,9.01118513]
[1642679916596,1.1788,3154.2,3152.8,5.7053]
[1642679916839,3.776,3154.9,3153.6,0.80549673]
[1642679917029,3.776,3154.9,3153.8,0.01091718]
[1642679917226,3.776,3154.9,3154.0,0.00885449]
[1642679917427,3.776,3154.9,3154.5,1.31957149]
[1642679917627,0.0192,3155.0,3154.5,1.31957149]
[1642679917829,1.11309885,3155.3,3154.9,0.0009487]
[1642679918030,1.06309885,3155.3,3154.9,0.0009487]
[1642679918633,1.36309885,3155.3,3154.9,0.0009487]
[1642679918834,1.66309885,3155.3,3155.2,1.21121311]
[1642679919033,0.6,3155.3,3155.2,1.21121311]
[1642679919237,0.61421059,3155.3,3155.2,1.21121311]
[1642679919433,0.01421059,3155.3,3155.2,1.21121311]
[1642679921873,0.01421059,3155.3,3154.9,0.0009487]
[1642679922275,0.01364217,3155.2,3154.9,0.0009487]
[1642679922676,0.01307374,3155.1,3154.9,0.0009487]
[1642679923074,0.01250532,3155.0,3154.9,0.0009487]
[1642679923476,0.01250532,3155.0,3154.8,1.29515722]
[1642679923878,1.0,3155.4,3154.8,1.29515722]
[1642679923879,0.0119369,3154.9,3154.8,1.29515722]
[1642679924179,0.0119369,3154.9,3154.5,1.31957149]
[1642679924616,0.01136847,3154.8,3154.5,1.31957149]
[1642679925016,0.01080005,3154.7,3154.5,2.6520511]
[1642679925223,0.01080005,3154.7,3154.5,1.33247961]
[1642679925423,0.01023163,3154.6,3154.5,1.33247961]
[1642679930871,0.3,3155.2,3154.5,1.33247961]
[1642679931075,4.08210179,3155.5,3154.5,1.33247961]
[1642679931076,1.3,3155.5,3154.5,1.33247961]
[1642679931273,0.00284211,3155.1,3154.5,1.33247961]
[1642679931835,0.00227369,3155.0,3154.5,1.33247961]
[1642679932229,0.00170527,3154.9,3154.5,1.33247961]
[1642679932528,0.00113684,3154.8,3154.5,1.33247961]
[1642679932930,0.00454738,3155.4,3154.5,1.33247961]
[1642679933334,0.00397896,3155.3,3154.5,1.33247961]
[1642679933737,0.00341054,3155.2,3154.5,1.33247961]
[1642679933937,0.00341054,3155.2,3155.0,1.29407137]
[1642679934135,0.6,3155.5,3154.4,0.79282]
[1642679934136,0.00454738,3155.4,3154.4,0.79282]
[1642679934539,0.00397896,3155.3,3154.4,0.79282]
[1642679934836,0.00341054,3155.2,3154.4,0.79282]
[1642679935238,0.00454738,3155.4,3154.7,1.10357209]
[1642679935679,0.00397896,3155.3,3154.7,1.10357209]
[1642679936077,0.00341054,3155.2,3154.7,1.10357209]
[1642679936480,1.6,3155.5,3154.7,1.10357209]
[1642679936481,0.00454738,3155.4,3154.7,1.10357209]
[1642679936881,0.00454738,3155.4,3153.8,0.1267]
[1642679936882,0.03190939,3155.3,3153.8,0.1267]
[1642679937085,0.01253204,3154.1,3153.8,0.1267]
[1642679937280,2.765,3154.0,3153.9,0.00397897]
[1642679937480,3.065,3154.0,3153.9,0.00397897]
[1642679937681,1.315,3154.0,3153.9,0.00397897]
[1642679937879,5.2104,3154.7,3153.9,0.00397897]
[1642679937880,1.0,3154.5,3153.9,0.00397897]
[1642679938080,1.0,3154.6,3153.9,0.00397897]
[1642679938280,1.3,3154.6,3153.9,0.00397897]
[1642679938983,1.6,3154.6,3153.9,0.00397897]
[1642679939321,4.88414482,3154.6,3153.9,0.00397897]
[1642679939715,4.78389977,3154.6,3153.9,0.00397897]
[1642679939912,4.74691286,3154.6,3153.9,0.00397897]
[1642679940112,4.8667034,3154.6,3153.9,0.00397897]
[1642679940515,4.83369422,3154.6,3153.9,0.00397897]
[1642679941921,1.6,3154.6,3153.9,0.00397897]
[1642679942520,5.0864,3154.7,3153.9,0.00397897]
[1642679943064,5.0864,3154.7,3154.6,1.54543935]
[1642679943465,1.0,3155.0,3154.6,1.54543935]
[1642679943665,0.82797147,3154.7,3154.6,1.54543935]
[1642679943866,0.82797147,3154.7,3153.9,0.00397897]
[1642679944067,1.12797147,3154.7,3153.9,0.00397897]
[1642679944870,1.12797147,3154.7,3154.1,1.19969989]
[1642679945268,1.12797147,3154.7,3154.2,0.0022737]
[1642679947917,2.12797147,3154.7,3154.2,0.0022737]
[1642679948118,3.15709684,3154.6,3154.2,0.0022737]
[1642679948719,2.12797147,3154.7,3154.2,0.0022737]
[1642679948919,3.45778738,3154.6,3154.2,0.0022737]
[1642679949119,3.15778738,3154.6,3154.2,0.0022737]
[1642679949321,1.42797147,3154.7,3154.2,0.0022737]
[1642679949821,2.12797147,3154.7,3154.2,0.0022737]
[1642679950123,1.12797147,3154.7,3154.2,0.0022737]
[1642679950569,0.82797147,3154.7,3154.2,0.0022737]
[1642679950970,0.82797147,3154.7,3154.1,0.79286]
[1642679951170,0.82797147,3154.7,3154.2,1.19324123]
[1642679951573,0.82706249,3154.7,3154.3,0.00170528]
[1642679951770,0.82706249,3154.7,3154.2,1.19096753]
[1642679951771,0.82706249,3154.7,3154.2,1.14267281]
[1642679951970,0.00170527,3154.6,3154.2,1.14267281]
[1642679952370,0.82706249,3154.7,3154.2,1.14267281]
[1642679952371,0.00113685,3154.5,3154.2,1.14267281]
[1642679952773,0.00170528,3154.6,3154.2,1.14267281]
[1642679953173,0.00113685,3154.5,3154.2,1.14267281]
[1642679953574,0.00170528,3154.6,3154.2,1.14267281]
[1642679953974,0.00113685,3154.5,3154.2,1.14267281]
[1642679954415,0.00170528,3154.6,3154.2,1.14267281]
[1642679954818,0.00113685,3154.5,3154.2,0.99267281]
[1642679955215,0.00170528,3154.6,3154.2,0.99267281]
[1642679955620,0.00113685,3154.5,3154.2,0.99267281]
[1642679956021,0.00170528,3154.6,3154.2,0.99267281]
[1642679956421,0.00113685,3154.5,3154.2,0.99267281]
[1642679956822,0.00170528,3154.6,3154.2,0.99267281]
[1642679957222,0.00113685,3154.5,3154.2,0.99267281]
[1642679957622,0.00170528,3154.6,3154.2,0.99267281]
[1642679958079,0.00113685,3154.5,3154.2,0.99267281]
[1642679958472,0.00170528,3154.6,3154.2,0.99267281]
[1642679958874,0.00113685,3154.5,3154.2,0.99267281]
[1642679959273,0.00170528,3154.6,3154.2,0.99267281]
[1642679959673,0.00113685,3154.5,3154.3,2.69723504]
[1642679959873,0.00113685,3154.5,3154.2,0.99267281]
[1642679960073,0.00170528,3154.6,3154.2,0.99267281]
[1642679960274,0.00170528,3154.6,3154.3,2.697146]
[1642679960472,0.00113685,3154.5,3154.3,2.697146]
[1642679960876,0.82706249,3154.7,3154.3,2.697146]
[1642679960877,0.00170528,3154.6,3154.3,2.697146]
[1642679961282,0.00113685,3154.5,3154.3,2.697146]
[1642679961691,0.00170528,3154.6,3154.3,2.697146]
[1642679962119,0.00113685,3154.5,3154.3,2.697146]
[1642679962515,0.82706249,3154.7,3154.3,2.697146]
[1642679962516,0.00170528,3154.6,3154.3,2.697146]
[1642679962918,0.00113685,3154.5,3154.3,2.697146]
[1642679963320,0.82706249,3154.7,3154.3,2.697146]
[1642679963321,0.00170528,3154.6,3154.3,2.697146]
[1642679963722,0.00113685,3154.5,3154.3,2.697146]
[1642679964123,0.00170528,3154.6,3154.3,2.697146]
[1642679964521,0.00113685,3154.5,3154.3,2.697146]
[1642679964922,0.00170528,3154.6,3154.3,2.697146]
[1642679965421,0.00113685,3154.5,3154.3,2.697146]
[1642679965878,0.00284212,3154.8,3154.3,2.697146]
[1642679966275,0.0022737,3154.7,3154.3,2.697146]
[1642679966677,0.00170528,3154.6,3154.3,2.697146]
[1642679967077,1.2084,3154.9,3154.3,2.697146]
[1642679967078,0.00113685,3154.5,3154.3,2.697146]
[1642679967477,0.00284212,3154.8,3154.3,2.697146]
[1642679967880,0.0022737,3154.7,3154.3,2.697146]
[1642679968277,0.00170528,3154.6,3154.3,5.52256686]
[1642679968482,0.00170528,3154.6,3154.4,2.697146]
[1642679968681,0.00113685,3154.5,3154.2,0.99267281]
[1642679968880,0.00113685,3154.5,3154.3,5.57663356]
[1642679969080,0.00113685,3154.5,3154.2,0.99267281]
[1642679969081,0.00284212,3154.8,3154.4,5.52524521]
[1642679969329,0.00284212,3154.8,3154.4,2.82789087]
[1642679969513,0.0022737,3154.7,3154.2,0.99267281]
[1642679969715,0.0022737,3154.7,3154.3,5.59572301]
[1642679969913,0.00170528,3154.6,3154.4,2.69741858]
[1642679970115,0.00170528,3154.6,3154.2,3.88589837]
[1642679970116,0.00170528,3154.6,3154.5,2.69741858]
[1642679970314,0.82790706,3155.1,3154.2,3.81455754]
[1642679970315,0.00113685,3154.5,3154.2,0.99267281]
[1642679970619,0.00397897,3155.0,3154.3,2.69742015]
[1642679971021,0.00341055,3154.9,3154.4,2.8777269]
[1642679971219,0.00341055,3154.9,3154.5,2.69742015]
[1642679971418,1.1501,3155.4,3154.6,3.41427518]
[1642679971419,0.00284212,3154.8,3154.6,3.41427518]
[1642679971620,0.00284212,3154.8,3154.7,2.69742015]
[1642679971819,1.4501,3155.4,3154.7,2.69742015]
[1642679972018,1.4501,3155.4,3154.8,1.40281197]
[1642679972218,0.00568424,3155.3,3154.8,1.40281197]
[1642679972618,0.00511582,3155.2,3154.8,1.40281197]
[1642679973063,1.4501,3155.4,3154.8,1.40281197]
[1642679973064,0.00454739,3155.1,3154.8,1.40281197]
[1642679973265,0.00454739,3155.1,3154.9,1.20733733]
[1642679973465,0.00397897,3155.0,3154.9,1.20733733]
[1642679974168,0.00397897,3155.0,3154.9,7.08271941]
[1642679974969,0.00397897,3155.0,3154.9,3.90435967]
[1642679975368,0.00397897,3155.0,3154.9,9.46369159]
[1642679975772,0.00397897,3155.0,3154.9,6.20435967]
[1642679976176,0.00397897,3155.0,3154.9,3.90435967]
[1642679976372,0.00397897,3155.0,3154.9,6.35435967]
[1642679977621,0.00397897,3155.0,3154.9,10.707661]
[1642679977821,0.00397897,3155.0,3154.9,8.257661]
[1642679978022,0.1208,3156.8,3155.2,0.01548871]
[1642679978023,3.25933192,3156.8,3155.2,0.01548871]
[1642679978222,0.021,3157.1,3156.3,1.27326196]
[1642679978223,0.007,3157.1,3156.3,1.27326196]
[1642679979223,1.46724257,3157.1,3155.9,4.59070122]
[1642679979422,2.26724257,3157.1,3155.9,3.25933192]
[1642679979922,2.05968907,3157.1,3155.9,3.25933192]
[1642679980122,0.021,3157.2,3155.9,3.25933192]
[1642679980323,1.25787472,3157.0,3156.1,1.27403866]
[1642679980570,0.01193689,3157.1,3156.1,1.27403866]
[1642679980774,0.80436279,3157.1,3155.9,3.25933192]
[1642679980974,0.01136847,3157.0,3155.9,3.25933192]
[1642679981384,1.47782047,3156.7,3155.9,3.25933192]
[1642679981575,1.77782047,3156.7,3155.9,3.25933192]
[1642679981774,0.00909477,3156.6,3155.8,8.408]
[1642679981978,0.00909477,3156.6,3155.9,3.25933192]
[1642679981979,1.23441799,3156.5,3155.9,3.25933192]
[1642679982174,1.23441799,3156.5,3155.8,8.408]
[1642679982175,1.24294434,3156.5,3155.8,8.408]
[1642679982374,0.00795793,3156.4,3155.8,3.222]
[1642679982778,0.0073895,3156.3,3155.8,3.222]
[1642679982976,0.0073895,3156.3,3155.3,1.33309997]
[1642679983176,0.014,3156.4,3155.3,1.33309997]
[1642679983177,2.53986984,3155.9,3155.3,1.33309997]
[1642679983377,1.30068407,3155.9,3155.3,0.13819997]
[1642679983577,0.00454739,3155.8,3155.3,0.13819997]
[1642679983982,0.00397896,3155.7,3155.3,0.13819997]
[1642679984176,0.00397896,3155.7,3155.0,4.39699651]
[1642679984177,0.00397896,3155.7,3155.0,3.1916]
[1642679984423,0.00341054,3155.6,3155.0,3.1916]
[1642679984622,0.01741054,3155.6,3155.0,3.1916]
[1642679984824,0.00284212,3155.5,3154.7,1.332]
[1642679985021,0.00284212,3155.5,3154.7,0.1267]
[1642679985321,2.78434215,3155.3,3154.8,0.00113685]
[1642679985521,3.16640526,3155.2,3154.8,0.00113685]
[1642679985726,4.16754211,3155.2,3154.8,0.00113685]
[1642679985924,4.16657126,3155.2,3154.8,0.00113685]
[1642679986529,1.00113685,3155.2,3154.8,0.00113685]
[1642679987925,0.00113685,3155.2,3154.8,0.00113685]
[1642679988166,0.00113685,3155.2,3154.5,3.48960726]
[1642679988167,1.00113685,3155.2,3154.5,3.48960726]
[1642679988466,0.00113685,3155.2,3154.6,2.69916095]
[1642679988666,1.00113685,3155.2,3154.6,2.69916095]
[1642679988966,1.00113685,3155.2,3154.7,0.00170527]
[1642679988967,0.00113685,3155.2,3154.7,0.00170527]
[1642679989171,1.00113685,3155.2,3154.7,0.00170527]
[1642679989366,1.00113685,3155.2,3154.6,2.69680708]
[1642679989367,0.00113685,3155.2,3154.6,2.69680708]
[1642679989568,1.00113685,3155.2,3154.6,2.8552512]
[1642679989774,0.00113685,3155.2,3154.7,0.00170527]
[1642679989972,1.00113685,3155.2,3154.7,0.00170527]
[1642679990175,0.00113685,3155.2,3154.6,0.00227369]
[1642679990371,1.00113685,3155.2,3154.4,2.70036175]
[1642679990573,0.00113685,3155.2,3154.5,0.00284212]
[1642679990773,1.00113685,3155.2,3154.5,0.00284212]
[1642679991175,1.45225822,3155.1,3154.5,0.00284212]
[1642679991373,0.3,3155.1,3154.5,0.00284212]
[1642679991837,0.30113685,3155.2,3154.5,0.00284212]
[1642679992025,1.00113685,3155.2,3154.5,0.00284212]
[1642679992326,0.7930119,3155.0,3154.5,0.00284212]
[1642679992526,3.86821474,3154.9,3154.5,0.00284212]
[1642679992725,2.55858688,3154.8,3153.9,0.00625266]
[1642679992925,3.42067764,3154.7,3154.0,0.00568424]
[1642679993126,4.73367764,3154.7,3153.4,0.00909478]
[1642679993324,4.73367764,3154.7,3153.5,2.69743911]
[1642679993725,4.73367764,3154.7,3153.6,2.70539704]
[1642679993726,1.91977148,3154.1,3153.6,2.70539704]
[1642679993926,1.91977148,3154.1,3153.6,0.00795793]
[1642679993927,3.1811156,3154.1,3153.6,0.00795793]
[1642679994125,3.4811156,3154.1,3153.7,2.70484404]
[1642679994325,1.0,3154.0,3153.3,0.0096632]
[1642679994528,1.0,3154.0,3153.8,0.00682108]
[1642679994725,1.0,3154.0,3153.3,0.0096632]
[1642679995025,1.0932569,3154.1,3153.4,2.69761993]
[1642679995429,0.3,3154.1,3153.5,0.00852635]
[1642679995672,1.013,3154.3,3153.6,2.69761993]
[1642679995874,1.313,3154.3,3153.6,2.69761993]
[1642679996075,0.313,3154.3,3153.7,0.00738951]
[1642679996274,0.313,3154.3,3153.8,2.69761993]
[1642679996473,1.1061494,3154.3,3153.8,2.69761993]
[1642679996672,1.1061494,3154.3,3153.9,0.00625266]
[1642679997273,1.1061494,3154.3,3153.3,0.0096632]
[1642679997473,1.1061494,3154.3,3153.4,2.69745093]
[1642679997673,0.313,3154.3,3153.5,2.69745093]
[1642679997875,0.313,3154.3,3153.6,2.69745093]
[1642679998076,0.313,3154.3,3153.6,2.70540886]
[1642679998274,0.313,3154.3,3153.7,2.70484044]
[1642679998475,0.313,3154.3,3153.9,1.19904472]
[1642679998875,0.313,3154.3,3154.0,0.00568424]
[1642679998876,1.1061793,3154.3,3154.0,0.00568424]
[1642679999326,0.3,3154.2,3153.2,3.04101214]
[1642679999519,0.313,3154.3,3153.2,0.01023162]
[1642679999723,0.313,3154.3,3153.3,2.70712779]
[1642679999924,0.313,3154.3,3153.4,5.58039862]
[1642680000124,0.313,3154.3,3153.5,2.69746459]
[1642680000324,0.313,3154.3,3153.5,2.70599094]
[1642680000525,0.313,3154.3,3153.6,2.69746459]
[1642680001224,0.313,3154.3,3153.8,1.23644397]
[1642680001424,0.3,3154.3,3153.9,2.69746459]
[1642680001827,0.3,3154.4,3153.9,5.5447499]
[1642680002026,0.013,3154.7,3154.0,2.69746459]
[1642680002230,1.2343,3154.8,3154.0,2.69746459]
[1642680002628,1.2343,3154.8,3154.4,0.00750658]
[1642680002827,3.9266,3154.9,3154.4,2.91463551]
[1642680003076,0.04545261,3155.1,3154.3,2.84382457]
[1642680003674,0.04545261,3155.1,3154.3,1.55729597]
[1642680003877,0.04545261,3155.1,3153.8,0.79291]
[1642680004081,0.013,3155.0,3154.7,0.00750658]
[1642680004277,0.013,3155.0,3153.5,0.00852635]
[1642680004278,23.46518864,3155.0,3153.5,0.00852635]
[1642680004479,0.01249112,3154.5,3153.5,0.00852635]
[1642680004677,0.013,3153.9,3153.5,0.00852635]
[1642680004880,2.45111215,3153.8,3153.5,0.00852635]
[1642680005077,3.05111215,3153.8,3153.5,0.00852635]
[1642680005276,1.58707,3153.7,3153.5,0.00852635]
[1642680005479,8.96900774,3153.6,3153.5,0.00852635]
[1642680005677,8.96900774,3153.6,3151.7,0.01288322]
[1642680005678,0.0085,3153.5,3151.7,0.01288322]
[1642680005878,18.623,3153.4,3151.8,2.69841364]
[1642680006075,4.25600774,3153.3,3151.8,2.71660319]
[1642680006280,1.36564044,3152.2,3151.9,2.69841364]
[1642680006583,1.36564044,3152.2,3151.0,3.9857]
[1642680006584,5.38281179,3152.0,3150.8,4.04680303]
[1642680006827,3.26900774,3151.9,3150.9,2.69895581]
[1642680007026,3.26900774,3151.9,3151.0,2.69895581]
[1642680007027,1.013,3151.9,3151.0,2.69895581]
[1642680007224,4.26900774,3151.9,3151.4,0.00750658]
[1642680007428,4.26900774,3151.9,3151.1,0.02216852]
[1642680007429,1.5878416,3151.8,3151.1,0.02216852]
[1642680007624,3.26900774,3151.7,3151.5,0.01989482]
[1642680007824,3.26900774,3151.7,3150.4,0.4991666]
[1642680007825,0.013,3151.5,3150.4,0.4991666]
[1642680008028,0.013,3151.4,3150.5,2.70500504]
[1642680008228,0.013,3151.4,3150.6,2.69949925]
[1642680008429,1.29172815,3150.6,3150.4,0.4991666]
[1642680008628,0.013,3150.5,3150.4,0.4991666]
[1642680009026,2.1464,3150.6,3150.4,0.50030345]
[1642680009226,0.38678208,3150.5,3150.4,0.50030345]
[1642680009428,0.76056416,3150.5,3150.4,0.50030345]
[1642680009630,1.76056416,3150.5,3150.4,0.50030345]
[1642680010032,1.49296416,3150.5,3150.4,0.50030345]
[1642680010230,1.49296416,3150.5,3150.4,0.50781003]
[1642680010430,1.47996416,3150.5,3150.4,0.50781003]
[1642680010980,0.75956416,3150.5,3150.4,0.50781003]
[1642680011181,1.012,3151.0,3150.5,1.53112832]
[1642680011684,3.24369505,3150.9,3150.5,0.55025408]
[1642680011883,3.24369505,3150.9,3149.0,1.10610476]
[1642680011884,5.712,3150.7,3149.0,1.10610476]
[1642680012083,1.54734564,3149.8,3149.1,2.69982204]
[1642680012283,21.86398978,3149.7,3149.1,0.00738951]
[1642680012484,1.40671437,3149.6,3149.1,0.00738951]
[1642680012684,0.012,3149.5,3148.8,0.00909478]
[1642680013084,0.012,3149.5,3147.9,3.08708152]
[1642680013085,1.45748647,3148.4,3147.4,4.69816961]
[1642680013283,1.45748647,3148.4,3147.5,2.70092924]
[1642680013284,0.7947751,3148.2,3147.5,2.70092924]
[1642680013487,0.7947751,3148.2,3147.6,2.70092924]
[1642680013488,0.012,3148.1,3147.6,2.70092924]
[1642680013784,1.39217867,3147.9,3147.7,0.00625265]
[1642680013985,0.3,3148.1,3147.9,4.17653601]
[1642680014184,0.3,3148.1,3147.7,0.00625265]
[1642680014185,1.6017161,3148.0,3147.7,0.00625265]
[1642680014432,1.6017161,3148.0,3146.3,1.61275829]
[1642680014433,1.08864994,3147.5,3146.3,1.61275829]
[1642680014631,0.012,3147.4,3146.3,1.61275829]
[1642680014832,0.012,3147.4,3146.5,1.61275829]
[1642680015030,0.012,3147.4,3146.6,2.70188289]
[1642680015235,0.012,3147.4,3147.0,1.23821133]
[1642680015432,1.0,3147.7,3147.4,0.01776791]
[1642680015634,1.0,3147.7,3147.5,2.70188289]
[1642680015635,0.3,3147.7,3147.5,2.70188289]
[1642680015835,0.3,3147.7,3147.5,2.70301974]
[1642680016037,0.1208,3148.8,3147.5,4.13313204]
[1642680016238,0.012,3149.2,3147.7,5.7]
[1642680016438,0.012,3149.2,3147.6,3.25465401]
[1642680016439,0.012,3149.2,3148.3,1.50581228]
[1642680016639,0.00454739,3148.7,3148.4,2.70098254]
[1642680016841,0.00454739,3148.7,3148.3,1.50581228]
[1642680017139,0.012,3149.2,3148.4,2.70102323]